[Event "FIDE WY-U16 Olympuad 2022"]
[Site "Nakhchivan"]
[Date "2022.10.03"]
[Round "2.1"]
[White "Tarhan, Adar"]
[Black "Daneshvar, Bardiya"]
[Result "1-0"]
[ECO "B06"]
[WhiteElo "2320"]
[BlackElo "2516"]
[Annotator "TA"]
[PlyCount "107"]
[EventDate "2022.10.02"]
[EventType "team-tourn"]
[EventCountry "AZE"]
[SourceTitle "playchess.com"]
[Source "ChessBase"]
[SourceQuality "1"]
[WhiteTeam "Turkey"]
[BlackTeam "Iran"]
[WhiteTeamCountry "TUR"]
[BlackTeamCountry "IRI"]
[TimeControl "40/5400+30:1800+30"]

{[%evp 9,107,33,31,18,31,31,31,33,35,23,52,37,39,35,45,40,74,62,83,54,66,0,0,0,0,0,0,0,0,0,0,23,0,-23,0,0,0,0,66,75,75,70,75,75,72,64,68,74,89,72,68,27,24,18,45,24,25,24,58,65,72,67,119,102,109,94,203,195,203,202,202,202,292,200,536,522,5231,5231,5197,5205,6252,5197,5120,3812,3227,2701,2252,1906,1343,1337,1058,1039,29968,29970,29972,29973,29973,29972,29969,2541]} 1. e4 {[%emt 0:00:03]} g6 {[%emt 0:00:02]} 2. d4 {[%emt 0:00:36]} Bg7 {[%emt 0:00:13]} 3. Nf3 {[%emt 0:00:20]} d6 {[%emt 0:01:05]} 4. c3 {[%emt 0:00:31]} Nc6 {[%emt 0:02:34]} 5. Be3 {[%emt 0:09:49]} Nf6 {[%emt 0:04:30]} 6. Nbd2 {[%emt 0:04:36] B06: Modern Defence.} Ng4 {[%emt 0:03:18]} 7. Bg5 {[%emt 0:00:36]} h6 {[%emt 0:01:29]} 8. Bh4 {[%emt 0:00:04] [#] White is slightly better.} Nf6 $146 {[%emt 0:04:17]} ({Predecessor:} 8... g5 9. Bg3 f5 10. exf5 Bxf5 11. Qb3 Qd7 12. O-O-O O-O-O 13. Bb5 a6 14. h3 Nf6 {0-1 (34) Gawiec,K (1878)-Jaskolka,T (1954) Murzasichle 2011}) 9. Bd3 {[%emt 0:08:01]} Nh5 {[%emt 0:02:42]} 10. O-O {[%emt 0:03:41]} g5 {[%emt 0:02:15] aiming for ...Nf4.} 11. Bg3 {[%emt 0:00:13]} Nxg3 {[%emt 0:07:29]} 12. fxg3 {[%emt 0:02:37]} e6 {[%emt 0:02:29]} 13. Qe2 {[%emt 0:03:40]} Qe7 {[%emt 0:06:19]} 14. a4 {[%emt 0:04:25]} h5 15. b4 {[%emt 0:02:57]} (15. Rae1 $14) 15... g4 $11 {[%emt 0:12:04]} 16. Nh4 {[%emt 0:00:07]} Nxd4 {[%emt 0:00:40]} 17. cxd4 {[%emt 0:00:05]} Bxd4+ {[%emt 0:00:04]} 18. Kh1 {[%emt 0:00:04] Rac1 is the strong threat.} Bxa1 {[%emt 0:00:07]} 19. Rxa1 {[%emt 0:00:04]} Bd7 {[%emt 0:02:56]} 20. Qf2 {[%emt 0:05:42]} Qg5 {[%emt 0:03:10]} 21. Rc1 {[%emt 0:01:16]} Rc8 {[%emt 0:03:39]} 22. Rf1 {[%emt 0:01:05]} O-O {[%emt 0:02:55]} 23. e5 {[%emt 0:04:38]} Qxe5 {[%emt 0:06:52]} (23... d5 $11) 24. Ne4 $1 $36 {[%emt 0:01:21][%mdl 2048] White is on the roll. Chess con chili.} f5 {[%emt 0:01:00]} 25. Ng6 {[%emt 0:00:28]} Qg7 {[%emt 0:00:10]} 26. Nxf8 {[%emt 0:00:13] White is much more active.} Rxf8 {[%emt 0:00:04]} 27. Nd2 {[%emt 0:00:38][%cal Be4d2,Bd2b3,Bb3d4,Bd4e2,Be2f4][%mdl 32]} Bxa4 {[%emt 0:01:35]} 28. Qxa7 {[%emt 0:01:36]} Bc6 {[%emt 0:00:36]} 29. Qe3 {[%emt 0:00:57]} Qf6 {[%emt 0:01:34]} 30. Nb3 {[%emt 0:03:26]} Bd5 {[%emt 0:02:36]} 31. Nd4 {[%emt 0:03:46]} Ra8 {[%emt 0:03:08]} 32. Ne2 {[%emt 0:01:57] Hoping for Nf4.} Ra1 $1 {[%emt 0:05:15]} 33. Nf4 {[%emt 0:07:01]} Rxf1+ {[%emt 0:01:25]} 34. Bxf1 {[%emt 0:00:05]} Qa1 {[%emt 0:00:56]} 35. Qe2 {[%emt 0:00:10]} Kf7 {[%emt 0:04:12] White stays focused until the end.} (35... Qa2 $14) 36. Nxd5 $16 {[%emt 0:03:54]} exd5 {[%emt 0:00:08]} 37. h4 $1 {[%emt 0:00:05]} c6 {[%emt 0:04:51]} (37... c5 $16 {might work better.}) 38. Kh2 $18 {[%emt 0:01:04]} Qd4 {[%emt 0:01:38] [#]} 39. Qc2 $1 {[%emt 0:00:06]} Ke6 {[%emt 0:04:34] [#]} 40. Qc1 {[%emt 0:00:52]} c5 {[%emt 0:01:39]} (40... Qg7 {was called for.} 41. Bd3 Qh7 42. Qe3+ Kf6) 41. Qh6+ {[%emt 0:36:16]} Ke7 $2 {[%emt 0:30:35]} (41... Qf6 {is a better chance.} 42. Qxh5 c4) 42. Bb5 {[%emt 0:00:35] Black must now prevent Qh7+.} c4 {[%emt 0:00:00]} 43. Qh7+ {[%emt 0:00:00]} Kf8 {[%emt 0:00:00]} 44. Qxf5+ {[%emt 0:00:00]} Ke7 {[%emt 0:00:00]} 45. Qd7+ {[%emt 0:00:00]} Kf6 {[%emt 0:00:00]} 46. Qxd6+ {[%emt 0:00:00]} Kf5 {[%emt 0:00:00]} 47. Qe7 {[%emt 0:00:00] Bd7+ would kill now.} Qe5 {[%emt 0:00:00]} 48. Qh7+ {[%emt 0:00:00]} Ke6 {[%emt 0:00:00]} 49. Qg6+ {[%emt 0:00:00]} Qf6 {[%emt 0:00:00]} 50. Qxh5 {[%emt 0:00:00]} c3 {[%emt 0:00:00]} 51. Qxg4+ {[%emt 0:00:00] White mates.} Kd6 {[%emt 0:00:00]} 52. Qd7+ {[%emt 0:00:00]} Ke5 {[%emt 0:00:00]} 53. Qc7+ {[%emt 0:00:00]} Ke4 {[%emt 0:00:00]} 54. Qh7+ {[%emt 0:00:00] Weighted Error Value: White=0.09 (flawless) /Black=0.37} (54. Qxb7 $142 Qf8 55. Qc7 Qf6 56. Qh7+ Ke5 57. Bd3 Kd4 58. Bc2 Kc4 59. h5) 1-0

[Event "FIDE WY-U16 Olympuad 2022"]
[Site "Nakhchivan"]
[Date "2022.10.03"]
[Round "2.1"]
[White "Springis, Jevgenijs"]
[Black "Caputcuoglu, Zeki Berke"]
[Result "0-1"]
[ECO "E73"]
[WhiteElo "2057"]
[BlackElo "2370"]
[Annotator "TA"]
[PlyCount "84"]
[EventDate "2022.10.02"]
[EventType "team-tourn"]
[EventCountry "AZE"]
[SourceTitle "playchess.com"]
[Source "ChessBase"]
[SourceQuality "1"]
[WhiteTeam "Latvia"]
[BlackTeam "Turkey"]
[WhiteTeamCountry "LAT"]
[BlackTeamCountry "TUR"]
[TimeControl "40/5400+30:1800+30"]

{[%evp 12,84,45,20,37,17,30,-35,-26,-27,-19,-43,-58,-205,-24,-29,-34,-52,-31,-113,-129,-122,-97,-70,-34,-72,-62,-147,-138,-138,-127,-210,-215,-199,-236,-239,-229,-226,-218,-250,-269,-238,-235,-257,-244,-253,-252,-247,-239,-240,-252,-275,-264,-264,-264,-264,-264,-304,-237,-322,-314,-361,-358,-337,-316,-685,-685,-679,-671,-685,-630,-886,-671,-679,-664]} 1. d4 {[%emt 0:00:03]} Nf6 {[%emt 0:00:14]} 2. c4 {[%emt 0:00:09]} g6 {[%emt 0:00:09]} 3. Nc3 {[%emt 0:00:06]} Bg7 {[%emt 0:00:04]} 4. e4 {[%emt 0:00:07]} d6 {[%emt 0:00:06]} 5. Be2 {[%emt 0:00:06]} O-O {[%emt 0:00:14]} 6. Be3 {[%emt 0:00:05]} Nc6 {[%emt 0:01:09]} 7. d5 {[%emt 0:03:22]} Ne5 {[%emt 0:00:10] E73: King's Indian: Averbakh Variation without 6...c5.} 8. h3 {[%emt 0:00:29]} e6 {[%emt 0:01:36]} 9. g4 {[%emt 0:05:30]} (9. Nf3 $11) 9... exd5 {[%emt 0:09:31] Black is slightly better.} 10. cxd5 {[%emt 0:02:21]} c5 {[%emt 0:02:42][%cal Ob7b5]} 11. f4 {[%emt 0:08:01]} Ned7 {[%emt 0:00:09]} 12. g5 {[%emt 0:00:31] [#]} (12. Nf3 $15) 12... Ne8 $2 {[%emt 0:00:09] [#]} (12... Nxe4 $1 $19 {[%mdl 512]} 13. Nxe4 Re8) 13. Bd3 $146 {[%emt 0:23:35]} ({Predecessor:} 13. h4 Qa5 14. Qd2 Qb4 15. Bf3 Nb6 16. a3 Qb3 17. Bd1 Qc4 18. Qc2 Bxc3+ 19. bxc3 {½-½ (76) Kincs,I (2240)-Szittar,A (2150) Hungary 1998}) 13... Nc7 {[%emt 0:05:01]} 14. Nge2 {[%emt 0:06:21]} b5 {[%emt 0:03:47]} 15. Bxb5 {[%emt 0:05:42]} (15. Nxb5 $2 Nxb5 16. O-O Nc7 $19) (15. Qd2 $15) 15... Nxb5 $17 {[%emt 0:03:38]} 16. Nxb5 {[%emt 0:01:28]} Qa5+ {[%emt 0:06:15]} 17. Nbc3 {[%emt 0:01:18]} Nb6 {[%emt 0:04:44][%cal Bd7b6,Bb6c4,Bc4a3][%mdl 32]} 18. Bd2 {[%emt 0:05:22]} Nc4 {[%emt 0:07:55]} 19. Qa4 {[%emt 0:03:26] Black keeps a firm grip on the game.} ({White should try} 19. Qc2 $15) 19... Qxa4 {[%emt 0:00:50] Black is more active.} 20. Nxa4 {[%emt 0:00:04]} Bd7 {[%emt 0:00:20]} ({Not} 20... Nxb2 21. Nxb2 Bxb2 22. Rb1 $17) 21. Bc3 {[%emt 0:14:03]} Bxa4 $19 {[%emt 0:01:36]} 22. Bxg7 {[%emt 0:01:07]} Kxg7 {[%emt 0:00:05]} 23. b3 {[%emt 0:00:14]} Na3 {[%emt 0:00:06] And now ...Bd7 would win.} 24. bxa4 {[%emt 0:01:00]} Nc2+ {[%emt 0:00:02]} 25. Kd2 {[%emt 0:00:22]} Nxa1 {[%emt 0:00:05]} 26. Rxa1 {[%emt 0:00:03][%mdl 4096] Endgame KRR-KRN} Rab8 {[%emt 0:02:36]} 27. Nc3 {[%emt 0:01:06]} a6 {[%emt 0:07:34] Prevents Nb5.} 28. e5 {[%emt 0:09:20]} Rb4 {[%emt 0:03:11]} 29. Rf1 {[%emt 0:03:05]} Re8 {[%emt 0:02:59]} 30. exd6 {[%emt 0:00:20]} Rd8 {[%emt 0:00:17]} 31. f5 {[%emt 0:00:29]} gxf5 {[%emt 0:01:06]} ({Worse is} 31... Rxd6 32. f6+ Kf8 33. a3 $17) 32. Rxf5 {[%emt 0:00:07]} Rxd6 {[%emt 0:00:46]} 33. Ke3 {[%emt 0:00:59]} Rd8 {[%emt 0:10:03]} 34. Re5 {[%emt 0:03:16]} Rd4 {[%emt 0:01:33]} 35. h4 {[%emt 0:02:24]} Kf8 {[%emt 0:00:48]} ({But not} 35... Rxh4 $2 36. Ne4 $19) 36. h5 {[%emt 0:01:28]} Re8 {[%emt 0:01:31]} 37. Rxe8+ {[%emt 0:00:14]} Kxe8 {[%emt 0:00:01] KR-KN} 38. h6 $2 {[%emt 0:00:18]} (38. Ne4) 38... Ke7 {[%emt 0:02:23] Black is clearly winning.} 39. a5 {[%emt 0:00:04]} Kd8 {[%emt 0:05:05]} 40. a3 {[%emt 0:00:56]} Ke7 {[%emt 0:00:17]} 41. a4 {[%emt 0:30:18]} Kd8 {[%emt 0:30:22]} 42. Ke2 {[%emt 0:00:45]} c4 {[%emt 0:00:42] Weighted Error Value: White=0.54/Black=0.18 (very precise)} 0-1

[Event "FIDE WY-U16 Olympuad 2022"]
[Site "Nakhchivan"]
[Date "2022.10.03"]
[Round "2.2"]
[White "Ashraf, Artin"]
[Black "Akin, Yagiz Cinar"]
[Result "1/2-1/2"]
[ECO "A49"]
[WhiteElo "2379"]
[BlackElo "2249"]
[Annotator "TA"]
[PlyCount "85"]
[EventDate "2022.10.02"]
[EventType "team-tourn"]
[EventCountry "AZE"]
[SourceTitle "playchess.com"]
[Source "ChessBase"]
[SourceQuality "1"]
[WhiteTeam "Iran"]
[BlackTeam "Turkey"]
[WhiteTeamCountry "IRI"]
[BlackTeamCountry "TUR"]
[TimeControl "40/5400+30:1800+30"]

{[%evp 18,85,30,20,20,18,17,18,52,55,60,55,55,18,16,16,15,24,30,6,18,27,22,0,0,0,0,-16,-7,-13,-10,-7,0,0,-4,-8,0,-4,-8,-3,-6,-4,-3,-6,0,0,0,0,0,0,0,0,0,0,0,0,0,0,0,0,0,0,0,0,0,0,0,0,0,0]} 1. d4 {[%emt 0:00:11]} Nf6 {[%emt 0:00:25]} 2. Nf3 {[%emt 0:00:07]} g6 {[%emt 0:00:07]} 3. g3 {[%emt 0:00:06]} Bg7 {[%emt 0:00:04]} 4. Bg2 {[%emt 0:00:09]} d5 {[%emt 0:00:09]} 5. O-O {[%emt 0:00:06]} O-O {[%emt 0:00:04]} 6. c4 {[%emt 0:00:08]} dxc4 {[%emt 0:00:05]} 7. Na3 {[%emt 0:00:10]} c3 {[%emt 0:00:31]} 8. bxc3 {[%emt 0:00:02]} c5 {[%emt 0:00:05]} 9. Nc4 {[%emt 0:00:12]} Nc6 {[%emt 0:03:07]} 10. Nfe5 {[%emt 0:11:24]} Be6 {[%emt 0:18:59] is now debated instead of 10...Nd5. D77: Fianchetto Grünfeld: 6 0-0: Replies other than 6...c6.} 11. Nxc6 {[%emt 0:10:07]} bxc6 {[%emt 0:00:06]} 12. Qd3 {[%emt 0:00:33]} Nd5 {[%emt 0:06:34][%cal Od5c3]} 13. Ba3 {[%emt 0:18:51]} cxd4 {[%emt 0:12:27]} 14. cxd4 {[%emt 0:00:20]} Rb8 {[%emt 0:05:14] [#]} 15. Qd2 $146 {[%emt 0:33:44] Against Nb4} ({Predecessor:} 15. Ne5 Qc7 16. Rac1 Bxe5 17. dxe5 Qxe5 18. Bc5 Nb4 19. Qa3 Nxa2 20. Rc2 Rb3 21. Qxa7 {1-0 (35) Wojtaszek,R (2719)-Salem,A (2682) ICC INT 2020}) 15... Nb6 {[%emt 0:13:04]} 16. Na5 {[%emt 0:01:46]} Bxd4 {[%emt 0:12:34]} (16... Qxd4 17. Qxd4 Bxd4 18. Nxc6 Bxa1 19. Rxa1 $14) 17. Rad1 {[%emt 0:01:12]} Bf6 {[%emt 0:00:59] [#] Strongly threatening ...Qxd2.} ({But not} 17... c5 18. Nc6 Qe8 19. Nxb8 (19. Nxd4 Nc4 $14) 19... Qxb8 20. Qg5 $16) 18. Qc2 {[%emt 0:14:33]} ({Not} 18. Bxc6 Qxd2 19. Rxd2 Bc3 $17) 18... Qc7 {[%emt 0:03:57][%cal Oc6c5]} 19. Nxc6 {[%emt 0:01:14]} Rbc8 {[%emt 0:00:30]} 20. Bb2 {[%emt 0:00:37][%cal Ba3b2,Bb2f6,Bf6a1][%mdl 32] The position is equal.} Bd7 {[%emt 0:14:21][%cal Rd7c6]} 21. Bxf6 {[%emt 0:02:51][%cal Rc6e7]} Bxc6 {[%emt 0:00:44]} 22. Ba1 {[%emt 0:01:05] Threatens to win with Rc1.} Bxg2 {[%emt 0:01:43]} 23. Qb2 {[%emt 0:00:02][%csl Ga1][%cal Rb2g7] [#]} f6 $1 {[%emt 0:00:20]} 24. Kxg2 {[%emt 0:00:01]} Qc2 {[%emt 0:00:53]} 25. Rc1 {[%emt 0:01:07]} Qe4+ {[%emt 0:01:25]} 26. f3 {[%emt 0:00:38]} Qe6 {[%emt 0:02:41] aiming for ...Nc4.} 27. e4 {[%emt 0:01:03]} Rfd8 {[%emt 0:00:34]} 28. Rxc8 {[%emt 0:00:33]} Rxc8 {[%emt 0:00:44]} 29. Rd1 {[%emt 0:00:22]} (29. Qb3 {feels hotter.} Kf7 30. Bd4 Rc6 31. g4) 29... Qc4 {[%emt 0:01:19]} 30. Qf2 {[%emt 0:00:57]} e5 {[%emt 0:00:49]} 31. g4 {[%emt 0:01:12]} g5 {[%emt 0:00:43]} 32. h4 {[%emt 0:00:01]} h6 {[%emt 0:00:13]} 33. hxg5 {[%emt 0:00:11]} hxg5 {[%emt 0:00:04]} 34. Kg3 {[%emt 0:00:43]} Qc2 {[%emt 0:00:35]} 35. Rd8+ {[%emt 0:00:59]} Kg7 {[%emt 0:00:03] And now ...Qxf2+ would win.} 36. Rxc8 {[%emt 0:00:15] Dancing on a razor blade.} Qxc8 $11 {[%emt 0:00:18][%mdl 4096] Endgame KQB-KQN} 37. Qd2 {[%emt 0:00:20]} Qc5 {[%emt 0:00:43] White must now prevent ...Qg1+.} 38. Kg2 {[%emt 0:00:22] Inhibits Qg1+.} Nc4 {[%emt 0:01:02]} 39. Qd7+ {[%emt 0:00:26]} Kg6 {[%emt 0:00:47]} 40. Qe8+ {[%emt 0:00:22]} Kg7 {[%emt 0:00:03]} 41. Qd7+ {[%emt 0:30:10]} Kg6 {[%emt 0:04:53]} 42. Qe8+ {[%emt 0:00:00]} Kg7 {[%emt 0:00:09]} 43. Qd7+ {[%emt 0:00:00] Weighted Error Value: White=0.03 (flawless) /Black=0.03 (flawless)} 1/2-1/2

[Event "FIDE WY-U16 Olympuad 2022"]
[Site "Nakhchivan"]
[Date "2022.10.03"]
[Round "2.2"]
[White "Taspinar, Yanki"]
[Black "Adamovics, Aleksejs"]
[Result "1-0"]
[ECO "D26"]
[WhiteElo "2325"]
[BlackElo "2037"]
[Annotator "TA"]
[PlyCount "99"]
[EventDate "2022.10.02"]
[EventType "team-tourn"]
[EventCountry "AZE"]
[SourceTitle "playchess.com"]
[Source "ChessBase"]
[SourceQuality "1"]
[WhiteTeam "Turkey"]
[BlackTeam "Latvia"]
[WhiteTeamCountry "TUR"]
[BlackTeamCountry "LAT"]
[TimeControl "40/5400+30:1800+30"]

{[%evp 15,99,18,2,0,0,0,7,12,2,0,4,1,29,29,28,33,27,20,27,25,27,23,20,0,0,0,64,75,35,53,60,42,104,87,124,114,129,123,313,316,317,285,386,383,400,379,444,446,563,558,1939,475,1161,695,703,718,711,713,721,704,704,702,877,681,682,681,676,639,680,666,696,675,716,713,730,698,751,662,1082,722,1125,1118,1023,1022,1068,929]} 1. d4 {[%emt 0:00:13]} d5 {[%emt 0:00:08]} 2. c4 {[%emt 0:00:06]} dxc4 {[%emt 0:00:14]} 3. Nf3 {[%emt 0:00:22]} Nf6 {[%emt 0:00:36]} 4. e3 {[%emt 0:00:59]} e6 {[%emt 0:01:14]} 5. Bxc4 {[%emt 0:01:25]} a6 {[%emt 0:00:01]} 6. O-O {[%emt 0:01:07]} c5 {[%emt 0:00:49]} 7. Bb3 {[%emt 0:06:17]} Nc6 {[%emt 0:02:24] 7...Nc6 has become a bit dusty these days.} 8. Qe2 {[%emt 0:07:28]} b5 {[%emt 0:07:26]} 9. a4 {[%emt 0:00:43] D29: Queen's Gambit Accepted: Classical main line: 7 Qe2 with early ...Nbd7.} b4 {[%emt 0:08:19][%cal Rc5d4]} 10. Rd1 {[%emt 0:12:30]} Qc7 {[%emt 0:02:49]} 11. Nbd2 {[%emt 0:16:25] [#] The position is equal.} Be7 $146 {[%emt 0:07:39]} ({Predecessor:} 11... Bb7 12. dxc5 Bxc5 13. Bc4 O-O 14. b3 Ne5 15. Bb2 Nxc4 16. Qxc4 Nd5 17. Rac1 Rac8 {0-1 (26) Ster,P-Riepe,B DESC email 2000}) 12. Nc4 {[%emt 0:03:19]} O-O {[%emt 0:00:24]} 13. e4 {[%emt 0:05:37][%cal Be3e4,Be4e5][%mdl 32]} Nxd4 {[%emt 0:06:53]} 14. Nxd4 {[%emt 0:00:30]} cxd4 {[%emt 0:00:02]} 15. e5 {[%emt 0:06:21]} Nd5 {[%emt 0:05:41]} 16. Rxd4 {[%emt 0:01:46]} a5 {[%emt 0:05:48]} 17. Rg4 {[%emt 0:05:33]} f5 {[%emt 0:03:23]} 18. exf6 {[%emt 0:04:42]} Bxf6 {[%emt 0:00:12]} 19. Bd2 {[%emt 0:05:11]} Kh8 $1 {[%emt 0:11:06]} 20. Rc1 {[%emt 0:10:10]} Qd8 {[%emt 0:07:33]} (20... Bb7 $11) 21. Qe4 {[%emt 0:04:50]} Bb7 {[%emt 0:09:36]} 22. Bc2 {[%emt 0:03:19][%csl Gc2][%cal Re4h7]} ({And not} 22. Qxe6 Bc8 23. Qe4 Bxg4 24. Qxg4 Nb6 $17) 22... g6 {[%emt 0:00:06]} 23. Bh6 {[%emt 0:01:41]} ({Don't go for} 23. Qxe6 $2 Bc8 24. Qe2 Bxg4 25. Qxg4 Nb6 $19) 23... Rg8 {[%emt 0:01:43]} (23... Qc7 $14) 24. Bb3 $40 {[%emt 0:01:21][%mdl 128] White wants a kill. White is more active.} ({Much worse is} 24. Qxe6 $6 Bc8 25. Qe2 Bxg4 26. Qxg4 Re8 $11) 24... Qe7 {[%emt 0:00:49]} 25. Re1 {[%emt 0:00:31]} Rge8 {[%emt 0:04:11][%cal Od5b6]} 26. Ne5 {[%emt 0:00:27][%cal Og4g6] Hoping for Rxg6!} Rac8 $2 {[%emt 0:02:54] [#] This costs Black the game.} (26... Qc7 $16) 27. Rxg6 $1 $18 {[%emt 0:00:26][%mdl 512]} Rg8 {[%emt 0:01:24]} 28. Rg3 {[%emt 0:00:22]} Rxg3 {[%emt 0:06:27]} 29. hxg3 {[%emt 0:00:00]} Nb6 {[%emt 0:01:04]} 30. Qe3 {[%emt 0:00:57]} Nd5 {[%emt 0:00:32]} 31. Qe2 {[%emt 0:00:23] White is clearly winning.} Bg7 {[%emt 0:00:38]} 32. Qh5 {[%emt 0:00:49]} Nf6 {[%emt 0:01:32]} 33. Qh4 {[%emt 0:00:33]} (33. Nf7+ $142 Kg8 34. Qg5) 33... Bd5 {[%emt 0:00:42] [#]} (33... Bxh6 $142 34. Qxh6 Qg7) 34. Bg5 $1 {[%emt 0:00:04] Intending Ng6+ and mate.} Kg8 {[%emt 0:00:43]} 35. Ng4 {[%emt 0:00:50]} Bxb3 {[%emt 0:00:40]} 36. Nxf6+ {[%emt 0:00:33]} Bxf6 {[%emt 0:00:26]} 37. Bxf6 {[%emt 0:00:00]} Qf7 {[%emt 0:00:16]} 38. Re5 {[%emt 0:00:55]} Kf8 {[%emt 0:00:50] [#]} 39. Rg5 $1 {[%emt 0:00:40]} Qxf6 {[%emt 0:01:33] [#]} 40. Rg8+ $3 {[%emt 0:00:04][%mdl 576] Skewer, Discovered Attack} Kxg8 {[%emt 0:00:01]} 41. Qxf6 {[%emt 0:30:05][%mdl 4096] Endgame KQ-KRB} Bd5 {[%emt 0:30:24]} 42. g4 {[%emt 0:00:49][%cal Bg3g4,Bg4g5][%mdl 32]} Rf8 {[%emt 0:00:34]} 43. Qe5 {[%emt 0:00:00]} Rc8 {[%emt 0:00:00]} 44. g5 {[%emt 0:00:00]} Rc1+ {[%emt 0:00:00]} 45. Kh2 {[%emt 0:00:00]} Rc2 {[%emt 0:00:00]} 46. Kg3 {[%emt 0:00:00]} b3 {[%emt 0:00:00]} 47. Qf6 {[%emt 0:00:00] Strongly threatening Qd8+.} Rc4 {[%emt 0:00:00]} 48. Qd8+ {[%emt 0:00:00]} Kf7 {[%emt 0:00:00]} 49. Qxa5 {[%emt 0:00:00]} Rc2 {[%emt 0:00:00]} 50. Qd8 {[%emt 0:00:00] Weighted Error Value: White=0.52/Black=0.35} 1-0

[Event "FIDE WY-U16 Olympuad 2022"]
[Site "Nakhchivan"]
[Date "2022.10.03"]
[Round "2.3"]
[White "Yavuz, Efe Metehan"]
[Black "Movahed, Sina"]
[Result "0-1"]
[ECO "A45"]
[WhiteElo "2215"]
[BlackElo "2345"]
[Annotator "TA"]
[PlyCount "80"]
[EventDate "2022.10.02"]
[EventType "team-tourn"]
[EventCountry "AZE"]
[SourceTitle "playchess.com"]
[Source "ChessBase"]
[SourceQuality "1"]
[WhiteTeam "Turkey"]
[BlackTeam "Iran"]
[WhiteTeamCountry "TUR"]
[BlackTeamCountry "IRI"]
[TimeControl "40/5400+30:1800+30"]

{[%evp 19,80,25,40,2,16,0,-12,-43,-50,-75,-80,-75,-72,-72,-52,-58,-57,-155,-158,-154,-133,-156,-141,-163,-166,-148,-144,-233,-184,-191,-192,-272,-111,-129,-128,-253,-213,-208,-219,-435,-441,-435,-428,-416,-425,-630,-623,-785,-765,-982,-975,-850,-639,-632,-632,-632,-628,-562,-534,-534,-527,-503,-472]} 1. d4 {[%emt 0:00:32]} Nf6 {[%emt 0:00:21]} 2. g3 {[%emt 0:01:20]} g6 {[%emt 0:00:28]} 3. Bg2 {[%emt 0:00:59]} Bg7 {[%emt 0:00:15]} 4. e4 {[%emt 0:01:17]} d6 {[%emt 0:00:11]} 5. Nc3 {[%emt 0:00:12]} O-O {[%emt 0:00:14]} 6. Nge2 {[%emt 0:00:04]} Nbd7 {[%emt 0:01:06]} 7. O-O {[%emt 0:01:05]} c5 {[%emt 0:00:21]} 8. d5 {[%emt 0:00:54]} Rb8 {[%emt 0:01:25]} 9. a4 {[%emt 0:00:14]} b6 {[%emt 0:00:28]} 10. Rb1 {[%emt 0:25:48]} a6 {[%emt 0:03:55] [#]} 11. Bd2 $146 {[%emt 0:04:14] B07: Pirc Defence: Miscellaneous Systems.} ({Predecessor:} 11. h3 b5 12. axb5 axb5 13. b4 cxb4 14. Na2 Nc5 15. Nxb4 Bb7 16. Nc3 e6 17. Re1 Re8 18. Bd2 Qd7 {½-½ (78) Bao,Q (2213)-Ootes,L (2361) Sydney 2014}) 11... Qc7 {[%emt 0:05:02]} 12. Na2 {[%emt 0:05:09]} Ne5 {[%emt 0:04:49]} 13. Bc3 {[%emt 0:10:20] The position is equal.} e6 {[%emt 0:12:27]} 14. Bxe5 {[%emt 0:21:19]} dxe5 {[%emt 0:00:23]} 15. c4 {[%emt 0:00:09]} exd5 {[%emt 0:01:40]} 16. cxd5 {[%emt 0:00:02]} Ne8 {[%emt 0:01:03]} 17. b4 {[%emt 0:00:36]} c4 {[%emt 0:00:57]} 18. f4 {[%emt 0:06:22]} ({Better is} 18. b5 $15) 18... Nd6 $17 {[%emt 0:02:29]} 19. Nac3 {[%emt 0:00:21]} f5 {[%emt 0:01:59]} 20. Rc1 {[%emt 0:01:48]} a5 {[%emt 0:03:53]} 21. bxa5 {[%emt 0:01:08]} bxa5 {[%emt 0:00:58]} 22. Kh1 {[%emt 0:01:23]} Qc5 {[%emt 0:10:49]} 23. Qd2 {[%emt 0:04:42]} (23. exf5 $17 Bxf5 24. fxe5 Bxe5 25. Nf4) 23... Rb3 $19 {[%emt 0:03:32]} 24. fxe5 {[%emt 0:04:20]} Bxe5 {[%emt 0:00:29]} 25. exf5 {[%emt 0:01:06]} (25. Bh3 {is a better defense.}) 25... Nxf5 {[%emt 0:04:32]} (25... Bxf5 $19 {and Black stays clearly on top. White must now prevent ...Re8.} 26. Qe1 Re8) 26. Ne4 {[%emt 0:02:10]} Qe3 {[%emt 0:01:13] Black is more active.} 27. d6 {[#]} (27. Nf4 $17 Rb4 28. Rfe1 Qxd2 29. Nxd2 Bxf4 30. gxf4) 27... Bb7 $1 {[%emt 0:08:43]} 28. Qc2 {[%emt 0:03:07]} Qd3 {[%emt 0:04:08] Dancing on a razor blade.} ({Stronger than} 28... Nxd6 29. Nxd6 Bxd6 30. Qxc4+ Kh8 31. Rxf8+ Bxf8 32. Bxb7 Rxb7 33. Nf4 $11) 29. Qxc4+ {[%emt 0:03:14]} (29. d7 Ne3 30. Rxf8+ Kxf8 31. Qxd3 Rxd3 32. Kg1) 29... Qxc4 {[%emt 0:01:33]} 30. Rxc4 {[%emt 0:00:01]} Ne3 {[%emt 0:01:54]} 31. Rxf8+ {[%emt 0:00:29]} Kxf8 {[%emt 0:00:14][%cal Bg8f8,Bf8e7,Be7d7][%mdl 32]} 32. Rc5 {[%emt 0:01:26]} (32. Rc7 $142 Rb1+ 33. Ng1 Nxg2 34. Rxb7 Rxb7 35. Nc5) 32... Rb1+ {[%emt 0:00:33]} 33. Nc1 {[%emt 0:00:35]} Bb2 {[%emt 0:00:28] This bishop pair is nice.} 34. d7 {[%emt 0:00:18]} Ke7 {[%emt 0:00:08]} 35. Bf3 {[%emt 0:00:36]} Rxc1+ {[%emt 0:00:13]} 36. Rxc1 {[%emt 0:00:02]} Bxc1 {[%emt 0:00:03]} 37. Kg1 {[%emt 0:00:14]} Bxe4 {[%emt 0:00:14]} 38. Bxe4 {[%emt 0:00:01]} Kxd7 {[%emt 0:00:10]} 39. h4 {[%emt 0:00:07]} Nf5 {[%emt 0:00:27]} 40. Kf2 {[%emt 0:00:21]} Ke6 {[%emt 0:00:07] Weighted Error Value: White=0.56/Black=0.24 (precise)} 0-1